bitfinex/quotes_ETHUSD_20241217
["timestamp","ask_amount","ask_price","bid_price","bid_amount"]
[1734405105375,0.95505555,4016.8,4016.1,1.10248139]
[1734405105576,0.95505555,4016.8,4016.2,0.93436228]
[1734405105828,0.95505555,4016.8,4016.2,1.36157266]
[1734405106020,0.95505555,4016.8,4016.2,0.08004833]
[1734405106175,0.95505555,4016.8,4016.2,0.95025839]
[1734405106379,1.03782629,4017.3,4016.4,0.8234]
[1734405106581,1.03782629,4017.6,4016.6,3.0]
[1734405106804,1.99947879,4017.9,4016.9,0.8234]
[1734405106976,1.99947879,4017.9,4017.1,0.8234]
[1734405107192,0.9616525,4017.9,4017.2,1.24875831]
[1734405107394,0.9616525,4017.9,4017.2,0.39487153]
[1734405107903,0.9616525,4017.9,4017.2,0.07999014]
[1734405108306,0.01640985,4017.8,4017.2,0.07999014]
[1734405109037,0.9616525,4017.6,4017.2,0.07999014]
[1734405109212,0.9616525,4017.6,4017.2,0.27357332]
[1734405111348,0.9616525,4017.6,4017.2,0.07999014]
[1734405112238,0.7798,4017.9,4017.2,0.07999014]
[1734405112239,0.9616525,4017.3,4017.2,0.07999014]
[1734405112604,0.9616525,4017.3,4016.8,0.8234]
[1734405112941,0.9616525,4017.3,4016.9,0.93312304]
[1734405113248,0.9616525,4017.3,4016.9,0.07945097]
[1734405114044,0.01640985,4017.2,4016.9,0.07945097]
[1734405115036,0.9616525,4017.3,4016.9,0.07945097]
[1734405115195,0.9616525,4017.3,4016.9,0.27298023]
[1734405118623,0.9616525,4017.3,4016.9,0.07945097]
[1734405119743,1.03782629,4017.7,4016.9,0.07945097]
[1734405120052,0.9616525,4017.3,4016.9,0.07945097]
[1734405120243,0.01640985,4017.2,4016.9,0.07945097]
[1734405120950,0.9616525,4017.0,4016.9,0.07945097]
[1734405121357,0.9616525,4017.0,4016.5,0.7557]
[1734405121530,0.9616525,4017.0,4016.9,0.07954889]
[1734405121710,0.9616525,4017.0,4016.5,0.7557]
[1734405121910,0.9616525,4017.0,4016.9,0.07954889]
[1734405122144,0.9616525,4017.0,4016.5,1.07058139]
[1734405122343,0.9616525,4017.0,4016.9,0.07954889]
[1734405122527,0.9616525,4017.0,4016.5,1.07058139]
[1734405122718,0.9616525,4017.0,4016.9,0.07954889]
[1734405122923,0.9616525,4017.0,4016.5,1.58088369]
[1734405123139,0.9616525,4017.0,4016.9,0.07954655]
[1734405123461,0.9616525,4017.0,4016.9,0.07952455]
[1734405123965,0.9616525,4017.0,4016.1,0.7557]
[1734405124106,0.9616525,4016.6,4016.1,0.7557]
[1734405124310,0.9616525,4016.6,4016.2,0.07981782]
[1734405124763,0.97806235,4016.6,4016.2,0.07981782]
[1734405126022,0.9616525,4016.6,4016.2,0.07981782]
[1734405126968,0.9616525,4016.3,4016.2,0.07981782]
[1734405127329,0.9616525,4016.3,4015.8,1.07058139]
[1734405127526,0.9616525,4016.3,4016.2,0.07981782]
[1734405127724,0.9616525,4016.3,4015.8,1.07058139]
[1734405127936,0.7902,4016.7,4015.5,1.03244162]
[1734405127937,0.9616525,4016.0,4015.5,0.7557]
[1734405128134,0.9616525,4015.7,4015.5,0.7557]
[1734405128371,0.9616525,4015.7,4015.3,0.31488139]
[1734405128569,0.9616525,4015.7,4015.4,0.85379541]
[1734405128731,0.9616525,4016.0,4015.4,0.31488139]
[1734405129750,0.9616525,4016.0,4015.4,0.64278006]
[1734405129955,0.9616525,4016.0,4015.5,0.31488139]
[1734405136714,0.7902,4016.4,4015.6,0.805]
[1734405136860,1.03782629,4017.0,4015.6,1.13289867]
[1734405136861,0.9616525,4016.8,4015.6,1.13289867]
[1734405137058,0.9616525,4016.8,4015.7,0.39590857]
[1734405137273,0.9616525,4016.8,4015.8,0.15288072]
[1734405137802,0.9616525,4016.8,4015.9,0.08101553]
[1734405138112,0.9616525,4016.8,4015.8,0.15288072]
[1734405138307,0.9616525,4016.5,4015.8,0.15288072]
[1734405138598,0.9616525,4016.5,4015.9,0.08101553]
[1734405138756,0.9616525,4016.2,4015.9,0.08101553]
[1734405139155,1.14018775,4016.2,4015.2,0.8066]
[1734405139373,0.9616525,4015.7,4015.2,0.8066]
[1734405139569,0.9616525,4015.7,4015.3,0.08084935]
[1734405139963,0.9616525,4015.7,4015.2,0.8066]
[1734405140157,0.9616525,4015.7,4015.4,0.08084353]
[1734405140373,0.9616525,4015.7,4015.3,0.08084935]
[1734405140599,0.9616525,4015.7,4015.5,0.08083771]
[1734405140767,0.9616525,4015.7,4015.2,0.8066]
[1734405140768,0.9616525,4015.7,4015.4,0.08084353]
[1734405140969,0.9616525,4016.0,4015.6,0.08083188]
[1734405141168,0.9616525,4016.0,4015.5,0.08083771]
[1734405141415,0.9616525,4016.0,4015.2,0.8066]
[1734405141416,0.9616525,4016.0,4015.7,0.08082606]
[1734405141561,0.9616525,4016.0,4015.6,0.08083188]
[1734405141761,0.9616525,4016.0,4015.2,0.8066]
[1734405142120,0.9616525,4016.0,4015.3,0.14493801]
[1734405142265,0.9616525,4016.0,4015.3,0.08086583]
[1734405143668,1.7853525,4016.4,4015.3,0.08086583]
[1734405143669,0.9616525,4015.7,4015.3,0.08086583]
[1734405144069,0.9616525,4016.1,4015.3,0.31488139]
[1734405144317,0.9616525,4016.1,4015.4,0.39590504]
[1734405146398,0.8237,4016.4,4015.4,0.39590504]
[1734405146717,0.9616525,4016.1,4015.4,0.39590504]
[1734405153842,0.9616525,4016.1,4015.5,0.8066]
[1734405154010,0.9616525,4016.1,4015.6,0.08109967]
[1734405160185,0.8237,4017.3,4015.8,0.8066]
[1734405160339,0.9616525,4017.0,4015.9,1.68771024]
[1734405160533,0.8237,4017.3,4016.0,0.8066]
[1734405160775,0.9616525,4017.0,4016.1,0.31488139]
[1734405160979,0.9616525,4017.0,4016.1,0.39581786]
[1734405161738,0.9616525,4016.7,4016.1,0.39581786]
[1734405162349,0.9616525,4016.7,4016.2,0.15303165]
[1734405162788,0.9616525,4016.7,4016.3,0.08081654]
[1734405163133,0.9616525,4016.7,4016.2,0.15303165]
[1734405163336,0.9616525,4016.7,4016.4,0.08081072]
[1734405163587,0.9616525,4016.7,4016.3,0.08081654]
[1734405163736,1.03782629,4017.2,4016.5,0.0808049]
[1734405163941,1.86152629,4017.1,4016.4,0.07876756]
[1734405164203,0.8064,4016.9,4015.6,1.09508139]
[1734405164489,0.9616525,4016.1,4015.7,0.07869404]
[1734405166995,0.8064,4016.5,4015.7,0.07869404]
[1734405167156,0.9616525,4016.4,4015.7,0.07869404]
[1734405167650,0.9616525,4016.4,4015.7,0.26782761]
[1734405169494,0.9616525,4016.4,4015.7,0.07869404]
[1734405169666,0.9616525,4016.4,4015.8,2.91719101]
[1734405170000,0.9536525,4016.4,4015.9,0.07866694]
[1734405170708,0.9536525,4016.4,4015.9,0.39354833]
[1734405171612,0.9616525,4016.7,4016.0,1.94979456]
[1734405171770,0.9616525,4016.7,4016.0,1.09508139]
[1734405171965,1.03782629,4017.1,4016.1,3.3231821]
[1734405172167,0.9616525,4016.9,4016.2,0.48911241]
[1734405172426,0.9616525,4016.9,4016.2,0.56793992]
[1734405173813,1.03782629,4017.1,4016.3,0.7802]
[1734405173972,0.9616525,4017.1,4016.3,0.7802]
[1734405174170,0.9616525,4017.1,4016.4,0.07881587]
[1734405174998,0.9616525,4016.8,4016.4,0.07881587]
[1734405179097,0.9616525,4016.5,4016.4,0.07881587]
[1734405179332,0.9616525,4016.5,4016.0,0.7732]
[1734405179496,0.9616525,4016.2,4016.0,0.7732]
[1734405180410,0.9616525,4016.2,4015.7,0.7732]
[1734405180942,0.9616525,4016.2,4015.7,1.2852523]
[1734405181591,0.9616525,4016.2,4015.7,1.60013369]
[1734405182101,0.8183,4016.5,4015.8,0.07871688]
[1734405182371,0.9616525,4016.4,4015.8,0.07871688]
[1734405183207,0.9616525,4016.4,4015.8,0.6498461]
[1734405187308,0.9616525,4016.4,4015.8,0.96472749]
[1734405188169,0.9616525,4016.4,4015.9,0.85484415]
[1734405188474,0.9616525,4016.4,4015.9,0.93364791]
[1734405188635,0.9616525,4016.4,4015.9,0.07880376]
[1734405190375,0.9616525,4016.1,4015.9,0.07880376]
[1734405190531,0.9616525,4016.1,4015.3,0.7732]
[1734405190755,0.9616525,4015.8,4015.3,0.7732]
[1734405190923,0.9616525,4015.8,4015.3,1.08808139]
[1734405191226,0.9616525,4015.8,4015.4,1.38215032]
[1734405191419,0.9616525,4015.8,4015.4,0.52693369]
[1734405192260,0.9616525,4015.5,4015.4,0.31488139]
[1734405192425,0.9616525,4015.5,4014.7,0.7732]
[1734405192621,0.9616525,4015.2,4014.8,0.85555072]
[1734405192845,0.9616525,4015.2,4014.7,0.7732]
[1734405193018,0.8183,4015.1,4014.5,0.31488139]
[1734405193472,0.8183,4015.1,4014.5,0.55972356]
[1734405193766,0.8183,4015.1,4014.5,0.31488139]
[1734405194372,0.8183,4015.1,4014.6,0.32789867]
[1734405194522,0.8183,4015.1,4014.7,0.31488139]
[1734405194720,0.8183,4015.1,4014.7,0.64278006]
[1734405195122,2.0,4015.0,4014.7,0.64278006]
[1734405195978,2.0,4015.0,4014.7,0.78437807]
[1734405196128,2.0,4015.0,4014.8,0.32789867]
[1734405196330,2.0,4015.0,4014.9,0.7881]
[1734405197233,2.0,4015.0,4014.9,0.86813549]
[1734405198376,2.0,4015.0,4014.9,0.08003549]
[1734405198553,2.0,4015.0,4014.6,0.7881]
[1734405198754,2.0,4015.0,4014.9,0.08013857]
[1734405199063,2.0,4015.0,4014.6,0.7881]
[1734405199266,2.0,4015.0,4014.9,0.08013857]
[1734405199468,2.0,4015.0,4014.2,1.10298139]
[1734405199664,2.0,4015.0,4014.9,0.08013857]
[1734405200071,2.0,4015.0,4014.2,1.10298139]
[1734405200271,0.9616525,4014.9,4014.2,0.31488139]
[1734405200584,0.9616525,4014.9,4014.3,0.0802096]
[1734405200946,0.9616525,4014.6,4014.3,0.0802096]
[1734405201186,0.9616525,4014.6,4013.6,0.7881]
[1734405201187,0.7979,4014.5,4013.6,0.7881]
[1734405201369,0.9616525,4014.2,4013.6,0.7881]
[1734405201845,0.9616525,4014.2,4013.3,0.32789867]
[1734405202072,0.37595525,4014.9,4013.3,0.32789867]
[1734405202073,0.9616525,4013.9,4013.3,0.32789867]
[1734405203996,0.7979,4014.1,4013.3,0.32789867]
[1734405204883,0.7979,4014.1,4012.9,0.29470639]
[1734405204884,0.7979,4014.1,4012.9,0.32789867]
[1734405206699,0.7979,4014.1,4013.0,0.29470639]
[1734405206901,0.7979,4014.9,4013.1,0.32789867]
[1734405207201,0.7979,4014.9,4013.5,0.7881]
[1734405207399,0.7979,4014.9,4013.6,0.37881]
[1734405207602,0.7979,4014.9,4013.5,0.7881]
[1734405208216,0.7979,4014.9,4013.6,0.29470639]
[1734405208363,0.7979,4014.9,4013.7,0.7881]
[1734405208561,0.7979,4014.9,4013.7,1.1594768]
[1734405209728,4.57993864,4015.7,4013.8,0.7881]
[1734405209729,2.08965864,4015.7,4013.8,0.7881]
[1734405210016,0.7979,4015.5,4014.0,0.7881]
[1734405210512,0.7979,4015.5,4013.7,0.29470639]
[1734405210513,2.48984,4016.4,4014.2,0.7881]
[1734405210744,0.7979,4015.8,4014.3,0.7881]
[1734405210866,0.7979,4015.8,4014.3,0.86473545]
[1734405211562,2.88755864,4015.8,4014.3,0.86473545]
[1734405212321,0.7979,4015.2,4014.3,0.86473545]
[1734405213103,0.7979,4015.2,4014.3,1.251209]
[1734405213297,0.7979,4015.2,4014.3,0.86473545]
[1734405213540,0.7979,4015.6,4014.3,0.86473545]
[1734405214944,2.08965864,4015.8,4014.3,0.86473545]
[1734405215652,0.7979,4015.9,4014.3,0.86473545]
[1734405216115,0.7979,4016.2,4014.4,0.29470639]
[1734405216300,0.96335171,4015.0,4014.5,0.7881]
[1734405216508,0.96335171,4015.0,4014.6,3.0]
[1734405216831,0.96335171,4015.0,4014.7,0.86466719]
[1734405218653,0.96335171,4015.0,4014.8,0.38646672]
[1734405218807,0.96335171,4015.0,4014.7,0.86466719]
[1734405219008,0.96335171,4015.0,4014.9,0.07655554]
[1734405219660,0.96335171,4015.0,4014.7,0.7881]
[1734405219801,0.96335171,4015.0,4014.9,0.07655554]
[1734405220447,0.96335171,4015.0,4014.7,0.7881]
[1734405220753,0.96335171,4015.0,4014.8,0.07656137]
[1734405220962,0.96335171,4015.0,4014.7,0.7881]
[1734405221259,0.96335171,4015.0,4014.9,0.07655554]
[1734405221462,0.96335171,4015.0,4014.8,0.45537137]
[1734405221609,0.96335171,4015.0,4014.9,0.07655554]
[1734405221809,0.96335171,4015.0,4014.7,0.7881]
[1734405222117,0.96335171,4015.0,4014.9,0.07655554]
[1734405222336,0.96335171,4015.0,4014.8,0.07656112]
[1734405222651,0.96335171,4015.0,4014.9,0.07655554]
[1734405223006,0.96335171,4015.0,4014.7,0.7881]
[1734405223234,0.96335171,4015.0,4014.9,0.07655554]
[1734405223553,0.96335171,4015.0,4014.9,0.07637521]
[1734405223908,0.96335171,4015.0,4014.7,0.7881]
[1734405224134,0.96335171,4015.0,4014.9,0.07637521]
[1734405224609,0.96335171,4015.0,4014.9,0.38644752]
[1734405224808,0.96335171,4015.0,4014.9,0.07637521]
[1734405225037,0.96335171,4015.0,4014.7,0.7881]
[1734405225222,0.96335171,4015.0,4014.9,0.07637521]
[1734405225522,0.96335171,4015.0,4014.7,0.7881]
[1734405225728,0.96335171,4015.0,4014.9,0.07637521]
[1734405225956,0.96335171,4015.0,4014.8,0.07638103]
[1734405226249,0.96335171,4015.0,4014.9,0.07637521]
[1734405227256,0.96335171,4015.0,4014.7,0.7881]
[1734405227614,0.96335171,4015.0,4014.8,0.07638103]
[1734405227809,0.96335171,4015.0,4014.7,0.7881]
[1734405228152,0.96335171,4015.0,4014.8,0.0761286]
[1734405228710,0.96335171,4015.0,4014.7,0.7881]
[1734405229157,0.96335171,4015.0,4014.8,0.0761286]
[1734405229510,0.96335171,4015.0,4014.7,0.7881]
[1734405229721,0.96335171,4015.0,4014.9,0.07612277]
[1734405229928,0.96335171,4015.0,4014.9,0.29470639]
[1734405230239,0.96335171,4015.0,4014.9,0.37082916]
[1734405234445,0.96335171,4015.0,4014.9,1.5077945]
[1734405234644,0.96335171,4015.0,4014.9,1.65857395]
[1734405235473,0.96335171,4015.0,4014.9,1.35150861]
[1734405239243,0.96335171,4015.0,4014.9,1.05680222]
[1734405240487,0.96335171,4015.0,4014.9,0.22690222]
[1734405240871,0.96335171,4015.0,4014.9,0.07612277]
[1734405241248,0.96335171,4015.0,4014.7,0.7668]
[1734405241449,0.96335171,4015.0,4014.8,0.07589168]
[1734405241649,0.96335171,4015.0,4014.5,0.7668]
[1734405241898,0.96335171,4015.0,4014.6,0.07590333]
[1734405243044,0.7926,4014.9,4014.6,0.07590333]
[1734405243248,0.7926,4014.9,4014.2,0.7668]
[1734405243449,0.7926,4014.9,4014.3,0.07605846]
[1734405246686,1.75613295,4014.9,4014.3,0.07605846]
[1734405246994,1.75613295,4014.9,4013.6,1.06150639]
[1734405247209,1.75613295,4014.9,4013.7,1.22604036]
[1734405247419,1.75613295,4014.9,4013.7,0.37115012]
[1734405247561,0.7926,4014.8,4013.7,0.60059253]
[1734405247899,0.7926,4014.8,4013.8,0.85502475]
[1734405248200,0.7926,4014.8,4013.9,0.07643207]
[1734405248996,0.7926,4014.8,4014.0,0.32747265]
[1734405249211,0.7926,4014.8,4014.1,0.07642042]
[1734405249368,0.27194847,4014.7,4014.1,0.07642042]
[1734405250288,0.7926,4014.6,4014.1,0.07642042]
[1734405250450,1.75613295,4014.6,4014.1,0.07642042]
[1734405251373,1.75613295,4014.6,4014.0,0.32747265]
[1734405251695,0.7926,4014.6,4014.1,0.07642042]
[1734405251897,0.7926,4014.6,4014.1,0.40389307]
[1734405252103,0.99540814,4014.6,4014.1,0.40389307]
[1734405252392,0.20280814,4014.6,4014.1,0.40389307]
[1734405252571,0.7926,4014.5,4014.1,0.40389307]
[1734405254085,0.7926,4014.5,4014.1,0.07642042]
[1734405254492,0.7926,4014.5,4013.6,0.32747265]
[1734405254820,0.7926,4014.5,4013.7,0.8570632]
[1734405255023,0.7926,4014.5,4013.8,0.40391291]
[1734405259823,0.801,4014.8,4013.9,1.65535779]
[1734405260033,0.96335171,4015.0,4014.0,3.40435608]
[1734405260230,0.96335171,4015.0,4014.1,2.44912669]
[1734405260528,0.96335171,4015.0,4014.2,3.31484822]
[1734405260709,0.96335171,4015.0,4014.3,2.14146016]
[1734405261032,0.96335171,4015.0,4014.4,0.07686013]
[1734405261187,0.96335171,4015.0,4014.6,3.0]
[1734405261387,0.96335171,4015.0,4014.7,0.07684265]
[1734405261590,0.96335171,4015.0,4014.6,0.4049287]
[1734405261932,0.96335171,4015.0,4014.7,0.07684265]
[1734405262442,0.96335171,4015.0,4014.8,0.07683682]
[1734405262584,0.96335171,4015.0,4014.6,0.4049287]
[1734405262787,0.96335171,4015.0,4014.8,3.7985]
[1734405262988,0.96335171,4015.0,4014.9,0.076831]
[1734405264192,0.96335171,4015.0,4014.9,0.93334134]
[1734405264590,0.96335171,4015.0,4014.9,0.076831]
[1734405267725,0.96335171,4015.0,4014.9,0.93365225]
[1734405267903,0.96335171,4015.0,4014.9,4.89508854]
[1734405275373,0.96335171,4015.0,4014.9,2.69346962]
[1734405275674,0.801,4016.0,4015.0,3.7985]
[1734405275882,0.801,4016.0,4015.1,2.21749956]
[1734405276046,0.801,4016.0,4015.2,0.85670233]
[1734405276247,0.801,4016.0,4015.3,0.54910465]
[1734405277083,0.801,4016.0,4015.3,0.07598337]
[1734405277375,0.801,4016.0,4015.0,0.7985]
[1734405277569,0.801,4016.0,4015.4,0.07597754]
[1734405277778,0.801,4016.0,4015.1,3.0]
[1734405277947,0.801,4016.0,4015.5,0.07577085]
[1734405278276,0.801,4016.0,4015.6,0.07556933]
[1734405278481,0.801,4016.0,4015.0,0.7985]
[1734405278642,0.801,4016.0,4015.1,0.5586926]
[1734405281744,0.801,4016.6,4015.2,0.7985]
[1734405281978,0.96353295,4016.5,4015.2,0.7985]
[1734405282177,0.96353295,4016.5,4015.3,0.07558679]
[1734405284470,0.8153,4016.4,4015.3,0.07558679]
[1734405284972,0.9931833,4016.4,4015.3,0.07558679]
[1734405289910,0.96353295,4016.2,4015.3,0.07558679]
[1734405290685,0.96353295,4016.2,4015.2,0.7985]
[1734405290886,0.96353295,4016.2,4015.3,0.07557649]
[1734405291401,0.96353295,4016.2,4015.3,0.57477649]
[1734405295195,0.96353295,4016.2,4015.3,0.4992]
[1734405295634,0.96353295,4016.2,4015.4,0.07554866]
[1734405295945,0.96353295,4016.2,4015.3,0.4992]
[1734405296302,0.96353295,4016.2,4015.4,0.07554866]
[1734405296497,0.96353295,4016.2,4015.3,0.4992]
[1734405296814,0.96353295,4016.2,4015.4,0.07554866]
[1734405297150,0.96353295,4016.2,4015.4,0.51287353]
[1734405297295,0.96353295,4016.2,4015.4,0.07554866]
[1734405297937,0.8153,4016.4,4015.4,0.07554866]
[1734405298312,0.8153,4016.4,4015.3,0.4992]
[1734405298501,0.8153,4016.4,4015.4,0.07557067]
[1734405299045,0.8153,4016.4,4015.3,0.4992]
[1734405299253,1.34594292,4016.4,4015.4,0.07562217]
[1734405299469,1.34594292,4016.4,4015.3,0.4992]
[1734405299642,1.34594292,4016.4,4015.4,0.07562217]
[1734405300247,3.83574292,4016.4,4015.4,0.07562217]
[1734405300460,0.96353295,4015.9,4015.3,0.4992]
[1734405300621,0.96353295,4015.9,4015.4,0.075595]
[1734405300824,0.96353295,4015.9,4015.3,0.4992]
[1734405302067,0.7933,4016.1,4015.3,0.4992]
[1734405302658,0.7933,4016.1,4015.4,0.8022]
[1734405302821,0.7933,4016.1,4015.5,0.07560977]
[1734405303175,1.52541263,4016.1,4015.5,0.07560977]
[1734405303823,2.56323892,4016.1,4015.5,0.07560977]
[1734405304023,2.56323892,4016.1,4015.4,0.8022]
[1734405304267,1.03782629,4016.0,4015.4,0.8022]
[1734405304451,1.03782629,4016.0,4015.5,0.07560977]
[1734405304619,0.75734213,4015.9,4015.5,0.07560977]
[1734405304824,2.56323892,4016.1,4015.5,0.07560977]
[1734405305120,1.03782629,4016.0,4015.5,0.07560977]
[1734405305522,1.03782629,4015.8,4015.5,0.07560977]
[1734405306019,1.03782629,4015.8,4015.6,0.07560395]
[1734405306268,1.03782629,4015.8,4015.3,0.4992]
[1734405306569,1.75683295,4015.6,4015.4,0.0756156]
[1734405306927,2.79465924,4015.6,4015.3,0.4992]
[1734405308354,1.03782629,4015.5,4015.3,0.4992]
[1734405308560,1.55673943,4015.5,4015.3,0.4992]
[1734405308739,2.00684586,4015.6,4015.3,0.4992]
[1734405308944,2.450576,4015.6,4015.3,0.4992]
[1734405309842,1.48704305,4015.6,4015.3,0.4992]
[1734405310245,1.04331291,4015.6,4015.3,0.4992]
[1734405310448,1.04331291,4016.0,4015.4,0.8022]
[1734405310659,1.83661291,4016.2,4015.5,0.07442785]
[1734405311427,1.04331291,4016.1,4015.5,0.07442785]
[1734405311648,2.00684586,4016.0,4015.5,0.07442785]
[1734405312732,0.96353295,4015.7,4015.5,0.07442785]
[1734405313144,0.96353295,4015.7,4015.3,0.4992]
[1734405314973,1.04331291,4015.6,4015.3,0.4992]
[1734405317388,0.96353295,4015.4,4015.3,0.4992]
[1734405318953,2.33871348,4015.4,4015.3,0.4992]
[1734405319841,1.04331291,4015.6,4015.3,0.4992]
[1734405320074,0.96353295,4015.7,4015.3,0.4992]
[1734405320751,1.04331291,4015.8,4015.3,0.4992]
[1734405321138,2.00684586,4015.9,4015.3,0.4992]
[1734405321838,1.04331291,4015.8,4015.3,0.4992]
[1734405322093,0.60536253,4015.7,4015.3,0.4992]
[1734405323851,1.73333295,4015.6,4015.3,0.4992]
[1734405324196,1.55673943,4015.5,4015.3,0.4992]
[1734405324386,1.55673943,4015.4,4015.3,0.4992]
[1734405324549,1.55673943,4015.5,4015.3,0.4992]
[1734405324754,2.19834863,4015.5,4015.3,0.4992]
[1734405325531,2.49041,4015.4,4015.3,0.4992]
[1734405325692,3.26021,4015.4,4015.3,0.4992]
[1734405326079,4.81694943,4015.4,4015.3,0.4992]
[1734405326419,5.66672385,4015.4,4015.3,0.4992]
[1734405326727,6.185637,4015.4,4015.3,0.4992]
[1734405327218,6.735637,4015.4,4015.3,0.4992]
[1734405327778,4.65998442,4015.4,4015.3,0.4992]
[1734405328276,6.735637,4015.4,4015.3,0.4992]
[1734405329613,4.65998442,4015.4,4015.3,0.4992]
[1734405331200,6.735637,4015.4,4015.3,0.4992]
[1734405331925,5.67186999,4015.4,4015.3,0.4992]
[1734405332714,3.18145999,4015.4,4015.3,0.4992]
[1734405333216,1.61957442,4015.4,4015.3,0.4992]
[1734405333529,1.89087909,4015.4,4015.3,0.4992]
[1734405333690,0.96353295,4015.5,4015.3,0.4992]
[1734405336521,0.96353295,4015.8,4015.3,0.4992]
[1734405338923,0.96353295,4015.5,4015.3,0.4992]
[1734405363487,1.04110467,4015.6,4015.3,0.4992]
[1734405363699,2.52541852,4015.8,4015.4,0.12545]
[1734405363700,1.04110467,4015.8,4015.4,0.12545]
[1734405363870,1.04110467,4016.0,4015.5,0.8167]
[1734405364068,1.04110467,4016.1,4015.5,0.8167]
[1734405364292,1.56188557,4016.3,4015.5,0.8167]
[1734405364293,2.00463762,4016.2,4015.6,0.23755334]
[1734405364524,0.96353295,4015.7,4015.6,0.09341834]
[1734405364818,1.77883295,4015.7,4015.3,0.4992]
[1734405365119,0.96353295,4015.4,4015.3,0.4992]
[1734405366216,1.04261576,4015.6,4015.3,0.4992]
[1734405366419,2.00614871,4015.7,4015.3,0.4992]
[1734405368073,0.96353295,4015.7,4015.3,0.4992]
[1734405368603,0.96353295,4015.7,4015.3,0.63079]
[1734405368824,2.00614871,4016.0,4015.4,0.8167]
[1734405369305,0.96353295,4016.0,4015.4,0.8167]
[1734405369608,0.96353295,4016.0,4015.5,0.09345394]
[1734405369914,0.96353295,4016.0,4015.6,0.09344757]
[1734405370117,0.96353295,4016.0,4015.7,0.8167]
[1734405370413,0.96353295,4016.0,4015.8,0.09343482]
[1734405376828,2.00614871,4016.3,4015.8,0.09343482]
[1734405377325,2.00614871,4016.3,4015.7,0.8167]
[1734405377705,2.00614871,4016.3,4015.8,0.09343482]
[1734405378021,2.00614871,4016.3,4015.7,0.8167]
[1734405378435,2.00614871,4016.3,4015.8,0.09343482]
[1734405378583,0.96353295,4016.3,4015.9,0.7967]
[1734405379195,2.00614871,4016.6,4016.0,0.09342208]
[1734405379636,2.00614871,4016.6,4015.9,0.7967]
[1734405379829,0.96353295,4016.6,4015.9,0.7967]
[1734405380207,1.04261576,4016.7,4015.9,0.7967]
[1734405380538,0.96353295,4017.2,4016.1,4.82914162]
[1734405380693,0.96353295,4017.2,4016.3,3.0]
[1734405381191,0.96353295,4017.2,4016.4,0.09266015]
[1734405381433,0.96353295,4017.2,4016.5,0.7967]
[1734405381814,0.96353295,4017.2,4016.6,0.0926474]
[1734405382347,1.82881576,4017.6,4016.6,0.0926474]
[1734405382488,0.7862,4017.6,4016.7,0.7967]
[1734405382689,0.96353295,4017.7,4016.7,0.7967]
[1734405382891,0.96353295,4017.4,4016.8,0.09263466]
[1734405383822,0.96353295,4017.4,4016.7,0.7967]
[1734405384306,0.96353295,4017.4,4016.8,0.09263466]
[1734405384696,0.96353295,4017.4,4016.7,0.7967]
[1734405385112,0.96353295,4017.4,4016.8,0.09263466]
[1734405385317,0.96353295,4017.4,4016.7,0.7967]
[1734405385725,0.96353295,4017.7,4016.8,0.092601]
[1734405385928,0.96353295,4017.7,4016.9,0.7967]
[1734405386745,0.96353295,4017.7,4017.0,0.09258826]
[1734405387096,0.96353295,4017.7,4016.9,0.7967]
[1734405392711,0.96353295,4017.7,4017.0,0.09257867]
[1734405393319,0.96353295,4017.7,4016.9,0.7967]
[1734405400660,0.96353295,4017.4,4016.9,0.7967]
[1734405400869,0.55,4017.6,4015.7,0.28987964]
[1734405400870,0.96353295,4017.1,4015.8,0.7883]
[1734405401367,0.96353295,4017.1,4015.9,0.87668024]
[1734405402731,0.96353295,4016.3,4015.9,0.87668024]
[1734405403074,0.96353295,4016.3,4015.9,0.7883]
[1734405403236,0.96353295,4016.6,4015.9,0.7883]
[1734405403416,0.96353295,4016.6,4016.0,0.08594316]
[1734405403417,3.03974,4016.5,4016.0,0.08594316]
[1734405403614,3.5208673,4016.5,4016.0,0.08594316]
[1734405403819,3.5208673,4016.5,4015.9,0.7883]
[1734405405951,2.48961,4016.7,4015.9,0.7883]
[1734405406152,2.48974,4016.5,4015.9,0.7883]
[1734405406664,2.48974,4016.5,4015.6,0.7873]
[1734405406883,0.96353295,4016.1,4015.6,0.7873]
[1734405407771,2.48994,4016.2,4015.6,0.7873]
[1734405407934,2.8352873,4016.2,4015.6,0.7873]
[1734405410126,0.55,4016.1,4015.6,0.7873]
[1734405410450,3.03998,4016.1,4015.6,0.7873]
[1734405411235,2.48998,4016.1,4015.6,0.7873]
[1734405411437,2.48984,4016.4,4015.6,0.7873]
[1734405411738,1.14052625,4016.3,4015.6,0.7873]
[1734405412433,0.1769933,4016.3,4015.6,0.7873]
[1734405412636,2.48984,4016.4,4015.6,0.7873]
[1734405412952,3.29601,4016.7,4015.6,0.7873]
[1734405413129,0.96353295,4016.5,4015.6,0.7873]
[1734405413945,1.04261576,4017.3,4015.7,0.7873]
[1734405414274,0.96353295,4017.1,4015.9,0.7873]
[1734405414673,0.96353295,4017.1,4016.0,0.08486051]
[1734405414886,0.96353295,4017.1,4016.1,0.7873]
[1734405415041,0.96353295,4017.1,4016.1,0.87215616]
[1734405415386,3.53163576,4017.7,4016.1,0.87215616]
[1734405415587,1.56188557,4017.9,4016.1,0.87215616]
[1734405415588,0.96353295,4017.5,4016.1,0.87215616]
[1734405416764,1.84901576,4018.1,4016.2,0.85740314]
[1734405416946,0.96353295,4017.6,4016.4,0.7873]
[1734405417386,0.96353295,4017.6,4016.6,0.7873]
[1734405417751,0.96353295,4017.6,4016.8,0.7873]
[1734405417997,0.8064,4018.1,4016.9,0.08410728]
[1734405418166,0.96353295,4017.5,4016.9,0.87140728]
[1734405418593,0.96353295,4017.5,4016.9,0.7873]
[1734405419102,1.84591337,4018.1,4016.9,0.7873]
[1734405419264,0.96353295,4017.2,4016.9,0.7873]
[1734405419998,1.03951337,4017.9,4016.9,0.7873]
[1734405420158,0.96353295,4017.4,4016.9,0.7873]
[1734405422292,0.96353295,4017.1,4015.9,0.7707]
[1734405422656,0.96353295,4017.1,4016.1,0.7707]
[1734405423193,0.96353295,4017.1,4016.2,0.08375481]
[1734405423580,0.96353295,4017.1,4016.3,0.7707]
[1734405424183,0.96353295,4017.1,4015.8,0.7707]
[1734405424373,0.96353295,4017.1,4016.1,0.7707]
[1734405424554,0.96353295,4017.1,4016.2,0.08177494]
[1734405424760,0.96353295,4017.1,4016.3,0.7707]
[1734405424957,0.96299761,4017.2,4016.4,0.0817622]
[1734405425297,0.96299761,4017.2,4016.5,0.7707]
[1734405425795,0.96299761,4017.2,4016.7,0.7707]